[Event "Late-Titled-Tuesday-Blitz-December-26-2023"]
[Site "Chess.com"]
[Date "2023.12.26"]
[Round "3"]
[White "GlavkonVVS"]
[Black "mariofs"]
[Result "1-0"]
[WhiteElo "2506"]
[BlackElo "2189"]
[TimeControl "180+1"]
[EndTime "14:27:50 PST"]
[Termination "GlavkonVVS won by checkmate"]

1. Nf3 {[%clk 0:03:00.9]} 1... d5 {[%clk 0:02:59.7]} 2. c4 {[%clk 0:03:01.5]}
2... c6 {[%clk 0:02:59.6]} 3. d4 {[%clk 0:03:01.5]} 3... Nf6 {[%clk 0:02:58.5]}
4. Nc3 {[%clk 0:03:01.9]} 4... dxc4 {[%clk 0:02:58.7]} 5. a4 {[%clk 0:03:01.9]}
5... Bf5 {[%clk 0:02:58.6]} 6. e3 {[%clk 0:02:59]} 6... e6 {[%clk 0:02:58.7]} 7.
Bxc4 {[%clk 0:02:59.2]} 7... Bb4 {[%clk 0:02:58.4]} 8. O-O {[%clk 0:02:59.8]}
8... Nbd7 {[%clk 0:02:56.8]} 9. Ne2 {[%clk 0:03:00.3]} 9... O-O {[%clk
0:02:50.9]} 10. b3 {[%clk 0:02:58.4]} 10... c5 {[%clk 0:02:38.1]} 11. Bb2 {[%clk
0:02:57.1]} 11... a6 {[%clk 0:02:29.1]} 12. Ng3 {[%clk 0:02:56.9]} 12... Bg6
{[%clk 0:02:28.6]} 13. Nh4 {[%clk 0:02:40.6]} 13... cxd4 {[%clk 0:02:27.8]} 14.
Nxg6 {[%clk 0:02:39.3]} 14... hxg6 {[%clk 0:02:26.5]} 15. Qxd4 {[%clk
0:02:35.4]} 15... Nc5 {[%clk 0:02:17.2]} 16. Qh4 {[%clk 0:02:24.5]} 16... Nfe4
{[%clk 0:01:50.3]} 17. Qh3 {[%clk 0:02:07.8]} 17... Bc3 {[%clk 0:01:36.6]} 18.
Rad1 {[%clk 0:02:00]} 18... Qf6 {[%clk 0:01:36.1]} 19. Ba3 {[%clk 0:01:47.1]}
19... Nxg3 {[%clk 0:00:46.9]} 20. hxg3 {[%clk 0:01:33.9]} 20... Rfc8 {[%clk
0:00:31.5]} 21. Qg4 {[%clk 0:01:05.7]} 21... b5 {[%clk 0:00:27.7]} 22. Bxc5
{[%clk 0:00:42.1]} 22... bxc4 {[%clk 0:00:20.7]} 23. b4 {[%clk 0:00:18.8]} 23...
a5 {[%clk 0:00:20.1]} 24. Rb1 {[%clk 0:00:17.5]} 24... axb4 {[%clk 0:00:19.2]}
25. Bxb4 {[%clk 0:00:18.1]} 25... Rxa4 {[%clk 0:00:19]} 26. Bxc3 {[%clk
0:00:18.3]} 26... Qxc3 {[%clk 0:00:19.8]} 27. Rfc1 {[%clk 0:00:18.1]} 27... Qd3
{[%clk 0:00:19.4]} 28. Qf3 {[%clk 0:00:17.1]} 28... c3 {[%clk 0:00:18.7]} 29.
Rb7 {[%clk 0:00:17.2]} 29... Rac4 {[%clk 0:00:17.6]} 30. Qxf7+ {[%clk 0:00:17]}
30... Kh8 {[%clk 0:00:12.8]} 31. Qxg7# {[%clk 0:00:17.9]} 1-0

[Event "Late-Titled-Tuesday-Blitz-December-26-2023"]
[Site "Chess.com"]
[Date "2023.12.26"]
[Round "3"]
[White "dmarcolino"]
[Black "guillembaches"]
[Result "0-1"]
[WhiteElo "2127"]
[BlackElo "2501"]
[TimeControl "180+1"]
[EndTime "14:27:50 PST"]
[Termination "guillembaches won by resignation"]

1. d4 {[%clk 0:03:00.9]} 1... d5 {[%clk 0:02:59.5]} 2. c4 {[%clk 0:03:00.8]}
2... e6 {[%clk 0:02:59.9]} 3. Nf3 {[%clk 0:03:00]} 3... a6 {[%clk 0:02:59.7]} 4.
g3 {[%clk 0:02:56.4]} 4... dxc4 {[%clk 0:02:59.3]} 5. Bg2 {[%clk 0:02:52.6]}
5... b5 {[%clk 0:02:59.3]} 6. Ne5 {[%clk 0:02:49.5]} 6... c6 {[%clk 0:02:59.2]}
7. Nxc6 {[%clk 0:02:46.2]} 7... Qb6 {[%clk 0:02:59.1]} 8. Nxb8 {[%clk
0:02:21.1]} 8... Rxb8 {[%clk 0:03:00]} 9. O-O {[%clk 0:02:19.7]} 9... Bb7 {[%clk
0:02:56.6]} 10. Bxb7 {[%clk 0:02:15.4]} 10... Qxb7 {[%clk 0:02:42.9]} 11. b3
{[%clk 0:02:12.6]} 11... cxb3 {[%clk 0:02:27.6]} 12. Qxb3 {[%clk 0:02:11]} 12...
Nf6 {[%clk 0:02:27.3]} 13. Bf4 {[%clk 0:01:57.7]} 13... Rd8 {[%clk 0:02:26.9]}
14. Rd1 {[%clk 0:01:49.7]} 14... Be7 {[%clk 0:02:21.5]} 15. Be5 {[%clk
0:01:05.4]} 15... O-O {[%clk 0:02:17.1]} 16. Bxf6 {[%clk 0:01:05.4]} 16... Bxf6
{[%clk 0:02:17]} 17. e3 {[%clk 0:01:06.1]} 17... h5 {[%clk 0:02:04.3]} 18. Nd2
{[%clk 0:01:02.1]} 18... h4 {[%clk 0:02:02.5]} 19. gxh4 {[%clk 0:00:53.7]} 19...
Bxh4 {[%clk 0:01:51.2]} 20. Qd3 {[%clk 0:00:42.9]} 20... Rd5 {[%clk 0:01:43.7]}
21. Nf3 {[%clk 0:00:35.7]} 21... Bf6 {[%clk 0:01:25.8]} 22. Rac1 {[%clk
0:00:32]} 22... Rh5 {[%clk 0:01:18.9]} 23. e4 {[%clk 0:00:31]} 23... g6 {[%clk
0:01:13.8]} 24. e5 {[%clk 0:00:25.7]} 24... Bg5 {[%clk 0:01:06.4]} 25. Rc5
{[%clk 0:00:20.6]} 25... Kg7 {[%clk 0:01:03.8]} 26. Re1 {[%clk 0:00:17.5]} 26...
Rfh8 {[%clk 0:01:01.1]} 27. Qe4 {[%clk 0:00:16.7]} 27... Qe7 {[%clk 0:00:56.8]}
28. Rec1 {[%clk 0:00:13.4]} 28... Bxc1 {[%clk 0:00:55.3]} 29. Rxc1 {[%clk
0:00:12.7]} 29... Rf5 {[%clk 0:00:45]} 30. d5 {[%clk 0:00:12.6]} 30... exd5
{[%clk 0:00:40.9]} 31. Qxd5 {[%clk 0:00:13.5]} 31... Rh3 {[%clk 0:00:36.8]} 32.
Kg2 {[%clk 0:00:09.5]} 32... Rhxf3 {[%clk 0:00:35]} 33. Qxf3 {[%clk 0:00:08.7]}
33... Rxf3 {[%clk 0:00:35.1]} 34. Kxf3 {[%clk 0:00:09.6]} 34... Qxe5 {[%clk
0:00:34.9]} 0-1

[Event "Late-Titled-Tuesday-Blitz-December-26-2023"]
[Site "Chess.com"]
[Date "2023.12.26"]
[Round "3"]
[White "powermove"]
[Black "IranianCheetah"]
[Result "0-1"]
[WhiteElo "2026"]
[BlackElo "2354"]
[TimeControl "180+1"]
[EndTime "14:27:52 PST"]
[Termination "IranianCheetah won by checkmate"]

1. d4 {[%clk 0:02:52.9]} 1... d5 {[%clk 0:03:00.3]} 2. c4 {[%clk 0:02:50]} 2...
c6 {[%clk 0:03:00.6]} 3. Nc3 {[%clk 0:02:47.4]} 3... Nf6 {[%clk 0:03:01.1]} 4.
e3 {[%clk 0:02:47.4]} 4... e6 {[%clk 0:03:01.2]} 5. Nf3 {[%clk 0:02:45.7]} 5...
Bd6 {[%clk 0:03:01.3]} 6. Bd3 {[%clk 0:02:42.4]} 6... O-O {[%clk 0:03:00.7]} 7.
O-O {[%clk 0:02:42.1]} 7... dxc4 {[%clk 0:03:00.7]} 8. Bxc4 {[%clk 0:02:41.3]}
8... b5 {[%clk 0:03:01.6]} 9. Bd3 {[%clk 0:02:40.1]} 9... a6 {[%clk 0:03:02]}
10. e4 {[%clk 0:02:37.2]} 10... Bb4 {[%clk 0:02:59.4]} 11. a3 {[%clk 0:02:35]}
11... Bxc3 {[%clk 0:02:56.1]} 12. bxc3 {[%clk 0:02:28.7]} 12... Nbd7 {[%clk
0:02:55.9]} 13. Bg5 {[%clk 0:02:08.5]} 13... h6 {[%clk 0:02:54]} 14. Bh4 {[%clk
0:02:07.3]} 14... Qc7 {[%clk 0:02:49.2]} 15. Qe2 {[%clk 0:01:56.7]} 15... c5
{[%clk 0:02:22.1]} 16. Rfc1 {[%clk 0:01:40.5]} 16... Bb7 {[%clk 0:02:14.8]} 17.
h3 {[%clk 0:01:25.5]} 17... Rfe8 {[%clk 0:02:04.3]} 18. Bg3 {[%clk 0:01:17.8]}
18... Qb6 {[%clk 0:01:55.5]} 19. a4 {[%clk 0:01:09.2]} 19... c4 {[%clk
0:01:46.7]} 20. Bc2 {[%clk 0:01:06.9]} 20... Qc6 {[%clk 0:01:41.2]} 21. Re1
{[%clk 0:00:56.1]} 21... Nh5 {[%clk 0:01:18.4]} 22. Bh2 {[%clk 0:00:54.8]} 22...
g6 {[%clk 0:01:17.3]} 23. e5 {[%clk 0:00:52.6]} 23... Nb6 {[%clk 0:01:05.9]} 24.
Qe3 {[%clk 0:00:40.8]} 24... Kh7 {[%clk 0:01:00.7]} 25. g4 {[%clk 0:00:29.8]}
25... Nd5 {[%clk 0:00:54.8]} 26. Qd2 {[%clk 0:00:29.2]} 26... Ng7 {[%clk
0:00:54.1]} 27. h4 {[%clk 0:00:19.5]} 27... Rac8 {[%clk 0:00:34.6]} 28. h5
{[%clk 0:00:16.2]} 28... Nxc3 {[%clk 0:00:20.3]} 29. Nh4 {[%clk 0:00:13.8]}
29... Qh1# {[%clk 0:00:19.8]} 0-1

[Event "Late-Titled-Tuesday-Blitz-December-26-2023"]
[Site "Chess.com"]
[Date "2023.12.26"]
[Round "3"]
[White "Rafael_Ventura"]
[Black "prime-morty"]
[Result "0-1"]
[WhiteElo "2363"]
[BlackElo "2546"]
[TimeControl "180+1"]
[EndTime "14:27:58 PST"]
[Termination "prime-morty won by checkmate"]

1. e4 {[%clk 0:03:00.9]} 1... c5 {[%clk 0:02:59.8]} 2. c4 {[%clk 0:03:00.7]}
2... Nc6 {[%clk 0:02:59.1]} 3. Ne2 {[%clk 0:03:01.3]} 3... e5 {[%clk 0:02:50.4]}
4. g3 {[%clk 0:03:00.6]} 4... h5 {[%clk 0:02:49]} 5. h3 {[%clk 0:03:00.6]} 5...
h4 {[%clk 0:02:44.5]} 6. g4 {[%clk 0:03:00.6]} 6... g6 {[%clk 0:02:45]} 7. Bg2
{[%clk 0:02:59.8]} 7... Bh6 {[%clk 0:02:45]} 8. Nbc3 {[%clk 0:02:54]} 8... Nge7
{[%clk 0:02:44.4]} 9. O-O {[%clk 0:02:52.8]} 9... d6 {[%clk 0:02:41.1]} 10. a3
{[%clk 0:02:52.2]} 10... Nd4 {[%clk 0:02:40.9]} 11. d3 {[%clk 0:02:46.3]} 11...
Bxc1 {[%clk 0:02:39.7]} 12. Rxc1 {[%clk 0:02:47.2]} 12... g5 {[%clk 0:02:37.5]}
13. Nxd4 {[%clk 0:02:46]} 13... cxd4 {[%clk 0:02:37]} 14. Nd5 {[%clk 0:02:46]}
14... Ng6 {[%clk 0:02:37.3]} 15. b4 {[%clk 0:02:43.8]} 15... Be6 {[%clk
0:02:37.1]} 16. Qa4+ {[%clk 0:02:39.5]} 16... Kf8 {[%clk 0:02:37]} 17. Rfd1
{[%clk 0:02:35.3]} 17... a6 {[%clk 0:02:32]} 18. Kh2 {[%clk 0:02:25.2]} 18...
Rc8 {[%clk 0:02:31.5]} 19. b5 {[%clk 0:02:16.7]} 19... a5 {[%clk 0:02:27.2]} 20.
Rb1 {[%clk 0:02:13.9]} 20... b6 {[%clk 0:02:24.4]} 21. Rbc1 {[%clk 0:02:07.5]}
21... Kg7 {[%clk 0:02:22.6]} 22. Qb3 {[%clk 0:02:06.8]} 22... Bxd5 {[%clk
0:02:22.2]} 23. cxd5 {[%clk 0:02:04.8]} 23... Rc5 {[%clk 0:02:22.4]} 24. Rxc5
{[%clk 0:02:02.2]} 24... dxc5 {[%clk 0:02:22.6]} 25. a4 {[%clk 0:02:00.4]} 25...
Qd6 {[%clk 0:02:21.5]} 26. Rc1 {[%clk 0:01:56.5]} 26... Rd8 {[%clk 0:02:21.6]}
27. Qd1 {[%clk 0:01:56.1]} 27... Qf6 {[%clk 0:02:21.2]} 28. Qd2 {[%clk
0:01:56.4]} 28... Qf4+ {[%clk 0:02:17.4]} 29. Qxf4 {[%clk 0:01:51.8]} 29... exf4
{[%clk 0:02:17.5]} 30. Bf3 {[%clk 0:01:38.9]} 30... Ne5 {[%clk 0:02:17.6]} 31.
Be2 {[%clk 0:01:39.3]} 31... f3 {[%clk 0:02:14.7]} 32. Bf1 {[%clk 0:01:37.9]}
32... Kf6 {[%clk 0:02:13.6]} 33. Rc2 {[%clk 0:01:37.5]} 33... Ke7 {[%clk
0:02:13.6]} 34. Rc1 {[%clk 0:01:33.5]} 34... Kd6 {[%clk 0:02:13.9]} 35. Rc2
{[%clk 0:01:33.3]} 35... Rc8 {[%clk 0:02:09.4]} 36. Rc1 {[%clk 0:01:31.3]} 36...
f6 {[%clk 0:02:05.9]} 37. Rc2 {[%clk 0:01:30.7]} 37... c4 {[%clk 0:02:02.9]} 38.
dxc4 {[%clk 0:01:30.6]} 38... d3 {[%clk 0:02:02.9]} 39. Rc1 {[%clk 0:01:09.3]}
39... Kc5 {[%clk 0:01:35.8]} 40. Rd1 {[%clk 0:01:03.2]} 40... Kd4 {[%clk
0:01:34.6]} 41. d6 {[%clk 0:01:03.8]} 41... Rd8 {[%clk 0:01:28]} 42. c5 {[%clk
0:00:46.5]} 42... bxc5 {[%clk 0:01:28.1]} 43. b6 {[%clk 0:00:46.9]} 43... Rxd6
{[%clk 0:01:28.2]} 44. Rb1 {[%clk 0:00:41.6]} 44... Rd8 {[%clk 0:01:27.7]} 45.
b7 {[%clk 0:00:40.7]} 45... Rb8 {[%clk 0:01:28.1]} 46. Rb5 {[%clk 0:00:40.3]}
46... d2 {[%clk 0:01:25.3]} 47. Rb6 {[%clk 0:00:31.3]} 47... Rxb7 {[%clk
0:01:21]} 48. Rd6+ {[%clk 0:00:26.5]} 48... Kc3 {[%clk 0:01:21]} 49. Bb5 {[%clk
0:00:25.7]} 49... Rxb5 {[%clk 0:01:11.1]} 50. axb5 {[%clk 0:00:24.4]} 50... Nd3
{[%clk 0:01:11.2]} 51. Rxd3+ {[%clk 0:00:18.9]} 51... Kxd3 {[%clk 0:01:11.1]}
52. b6 {[%clk 0:00:19.8]} 52... d1=Q {[%clk 0:01:09.9]} 53. b7 {[%clk
0:00:20.7]} 53... Qf1 {[%clk 0:01:09.6]} 54. e5 {[%clk 0:00:21.6]} 54... Qg2#
{[%clk 0:01:09.5]} 0-1

[Event "Late-Titled-Tuesday-Blitz-December-26-2023"]
[Site "Chess.com"]
[Date "2023.12.26"]
[Round "3"]
[White "TheMagician"]
[Black "a-z30"]
[Result "0-1"]
[WhiteElo "2180"]
[BlackElo "2505"]
[TimeControl "180+1"]
[EndTime "14:28:12 PST"]
[Termination "a-z30 won on time"]

1. e4 {[%clk 0:03:00.9]} 1... d6 {[%clk 0:02:58.1]} 2. Nf3 {[%clk 0:03:00.6]}
2... Nf6 {[%clk 0:02:57.7]} 3. Nc3 {[%clk 0:03:00]} 3... g6 {[%clk 0:02:52.4]}
4. d4 {[%clk 0:02:59.9]} 4... Bg7 {[%clk 0:02:51.5]} 5. Be2 {[%clk 0:03:00.3]}
5... O-O {[%clk 0:02:50.7]} 6. Bg5 {[%clk 0:02:59.9]} 6... Bg4 {[%clk 0:02:50]}
7. h3 {[%clk 0:02:54.6]} 7... Bxf3 {[%clk 0:02:49.3]} 8. Bxf3 {[%clk 0:02:55]}
8... Nc6 {[%clk 0:02:47.3]} 9. Be3 {[%clk 0:02:44.2]} 9... e5 {[%clk 0:02:46.2]}
10. d5 {[%clk 0:02:39.2]} 10... Nd4 {[%clk 0:02:45.1]} 11. O-O {[%clk
0:02:37.6]} 11... Re8 {[%clk 0:02:22.7]} 12. Re1 {[%clk 0:02:35.3]} 12... c5
{[%clk 0:02:21.5]} 13. dxc6 {[%clk 0:02:34.3]} 13... bxc6 {[%clk 0:02:21.3]} 14.
Be2 {[%clk 0:02:29]} 14... Rb8 {[%clk 0:01:47.1]} 15. Rb1 {[%clk 0:02:27]} 15...
Qa5 {[%clk 0:01:39.3]} 16. Bc4 {[%clk 0:01:54.6]} 16... Rxb2 {[%clk 0:01:37.2]}
17. Rxb2 {[%clk 0:01:16.7]} 17... Qxc3 {[%clk 0:01:36]} 18. Bxf7+ {[%clk
0:01:16.7]} 18... Kxf7 {[%clk 0:01:34.4]} 19. Rb7+ {[%clk 0:01:17.1]} 19... Re7
{[%clk 0:01:23.6]} 20. Rxe7+ {[%clk 0:01:15.9]} 20... Kxe7 {[%clk 0:01:24.5]}
21. Qb1 {[%clk 0:01:05.6]} 21... Nd7 {[%clk 0:00:46]} 22. Bg5+ {[%clk 0:01:04]}
22... Bf6 {[%clk 0:00:44.2]} 23. Bxf6+ {[%clk 0:00:58.1]} 23... Nxf6 {[%clk
0:00:41.8]} 24. Qb7+ {[%clk 0:00:52.1]} 24... Ke6 {[%clk 0:00:41.3]} 25. Re3
{[%clk 0:00:49.9]} 25... Qxc2 {[%clk 0:00:35.7]} 26. Qc8+ {[%clk 0:00:36.3]}
26... Ke7 {[%clk 0:00:35.4]} 27. g4 {[%clk 0:00:25.2]} 27... Ne2+ {[%clk
0:00:26.6]} 28. Kg2 {[%clk 0:00:24.9]} 28... Nf4+ {[%clk 0:00:27.5]} 29. Kg3
{[%clk 0:00:21.1]} 29... Qc1 {[%clk 0:00:21.9]} 30. Kh4 {[%clk 0:00:10]} 30...
Qd2 {[%clk 0:00:17.2]} 31. Qc7+ {[%clk 0:00:01.1]} 31... Nd7 {[%clk 0:00:16.4]}
0-1

[Event "Late-Titled-Tuesday-Blitz-December-26-2023"]
[Site "Chess.com"]
[Date "2023.12.26"]
[Round "3"]
[White "Zampronha1971"]
[Black "BardArtem"]
[Result "0-1"]
[WhiteElo "2330"]
[BlackElo "2671"]
[TimeControl "180+1"]
[EndTime "14:28:16 PST"]
[Termination "BardArtem won on time"]

1. e4 {[%clk 0:03:00.9]} 1... e5 {[%clk 0:02:59.8]} 2. Nf3 {[%clk 0:03:01.4]}
2... Nc6 {[%clk 0:03:00.1]} 3. d4 {[%clk 0:03:02]} 3... exd4 {[%clk 0:03:00.3]}
4. Nxd4 {[%clk 0:03:02.9]} 4... Bb4+ {[%clk 0:03:00.7]} 5. c3 {[%clk 0:03:02.6]}
5... Bc5 {[%clk 0:03:01.2]} 6. Nxc6 {[%clk 0:02:58.7]} 6... bxc6 {[%clk
0:03:00.1]} 7. Bd3 {[%clk 0:02:57.4]} 7... Nf6 {[%clk 0:02:57.9]} 8. e5 {[%clk
0:02:50.8]} 8... Nd5 {[%clk 0:02:51.2]} 9. Qg4 {[%clk 0:02:43.6]} 9... g6 {[%clk
0:02:46.9]} 10. Bg5 {[%clk 0:02:18.8]} 10... Be7 {[%clk 0:02:45.1]} 11. Bh6
{[%clk 0:02:19]} 11... d6 {[%clk 0:02:40.2]} 12. Qg3 {[%clk 0:02:19.2]} 12...
Bh4 {[%clk 0:02:29.3]} 13. Qf3 {[%clk 0:02:12]} 13... dxe5 {[%clk 0:02:29.3]}
14. O-O {[%clk 0:02:08.5]} 14... Qf6 {[%clk 0:02:23.7]} 15. Be4 {[%clk
0:01:57.3]} 15... Qxf3 {[%clk 0:02:16.3]} 16. Bxf3 {[%clk 0:01:58.2]} 16... Be6
{[%clk 0:02:08.5]} 17. Bg7 {[%clk 0:01:55.4]} 17... Rg8 {[%clk 0:01:53.4]} 18.
Bxe5 {[%clk 0:01:55.9]} 18... O-O-O {[%clk 0:01:51.6]} 19. Na3 {[%clk
0:01:50.1]} 19... Be7 {[%clk 0:01:43.7]} 20. Nc2 {[%clk 0:01:44.9]} 20... f6
{[%clk 0:01:38.6]} 21. Bd4 {[%clk 0:01:44.9]} 21... c5 {[%clk 0:01:38]} 22. Be3
{[%clk 0:01:42.3]} 22... Nxe3 {[%clk 0:01:38.2]} 23. Nxe3 {[%clk 0:01:42.1]}
23... f5 {[%clk 0:01:36.7]} 24. Rfd1 {[%clk 0:01:38.2]} 24... Rxd1+ {[%clk
0:01:34.9]} 25. Rxd1 {[%clk 0:01:31.8]} 25... Rd8 {[%clk 0:01:34.7]} 26. Rxd8+
{[%clk 0:01:27]} 26... Kxd8 {[%clk 0:01:35.6]} 27. c4 {[%clk 0:01:23.4]} 27...
Kd7 {[%clk 0:01:25.8]} 28. Kf1 {[%clk 0:01:11.6]} 28... c6 {[%clk 0:01:23.3]}
29. b3 {[%clk 0:01:10.3]} 29... Kd6 {[%clk 0:01:22.9]} 30. Ke2 {[%clk
0:01:05.8]} 30... Bd7 {[%clk 0:01:21.2]} 31. g3 {[%clk 0:00:53.6]} 31... Ke5
{[%clk 0:01:18]} 32. Bg2 {[%clk 0:00:50.2]} 32... f4 {[%clk 0:01:13.8]} 33. Nf1
{[%clk 0:00:47.1]} 33... Bf5 {[%clk 0:01:07.1]} 34. Bxc6 {[%clk 0:00:43.6]}
34... Bb1 {[%clk 0:01:04.4]} 35. a3 {[%clk 0:00:41.8]} 35... Bc2 {[%clk
0:00:57.6]} 36. Nd2 {[%clk 0:00:41.3]} 36... fxg3 {[%clk 0:00:54]} 37. fxg3
{[%clk 0:00:36.7]} 37... Kd4 {[%clk 0:00:50.9]} 38. Bd5 {[%clk 0:00:21.6]} 38...
Kc3 {[%clk 0:00:48.9]} 39. b4 {[%clk 0:00:11.2]} 39... cxb4 {[%clk 0:00:47]} 40.
axb4 {[%clk 0:00:10.9]} 40... Bxb4 {[%clk 0:00:44.6]} 41. Bg8 {[%clk 0:00:07.5]}
41... a5 {[%clk 0:00:44.4]} 42. Bxh7 {[%clk 0:00:03.1]} 42... a4 {[%clk
0:00:44.7]} 43. Bg8 {[%clk 0:00:04]} 43... Bc5 {[%clk 0:00:39.9]} 0-1

[Event "Late-Titled-Tuesday-Blitz-December-26-2023"]
[Site "Chess.com"]
[Date "2023.12.26"]
[Round "3"]
[White "gxbg2000"]
[Black "Slovafn"]
[Result "0-1"]
[WhiteElo "1986"]
[BlackElo "2319"]
[TimeControl "180+1"]
[EndTime "14:28:16 PST"]
[Termination "Slovafn won by checkmate"]

1. e4 {[%clk 0:02:50.9]} 1... c5 {[%clk 0:02:59.4]} 2. Nf3 {[%clk 0:02:50.1]}
2... d6 {[%clk 0:03:00]} 3. d4 {[%clk 0:02:50.1]} 3... cxd4 {[%clk 0:03:00.7]}
4. Nxd4 {[%clk 0:02:50.5]} 4... Nf6 {[%clk 0:03:01.4]} 5. Nc3 {[%clk 0:02:50]}
5... g6 {[%clk 0:03:02.1]} 6. Be3 {[%clk 0:02:49.8]} 6... Bg7 {[%clk 0:03:02.8]}
7. Qd2 {[%clk 0:02:50.2]} 7... Nc6 {[%clk 0:03:03.4]} 8. f3 {[%clk 0:02:50.3]}
8... O-O {[%clk 0:03:02.6]} 9. O-O-O {[%clk 0:02:50.2]} 9... d5 {[%clk 0:03:02]}
10. exd5 {[%clk 0:02:49.2]} 10... Nxd5 {[%clk 0:03:02.9]} 11. Nxd5 {[%clk
0:02:49.2]} 11... Qxd5 {[%clk 0:03:02.3]} 12. Nxc6 {[%clk 0:02:48.5]} 12... Qxc6
{[%clk 0:02:26.9]} 13. Kb1 {[%clk 0:02:40.5]} 13... Bf5 {[%clk 0:02:20.3]} 14.
Bd3 {[%clk 0:02:18.6]} 14... Rfd8 {[%clk 0:02:20.4]} 15. Qe2 {[%clk 0:02:12.4]}
15... Qf6 {[%clk 0:02:13.1]} 16. Bc1 {[%clk 0:02:09.7]} 16... a5 {[%clk
0:01:54.4]} 17. g4 {[%clk 0:02:07.3]} 17... Be6 {[%clk 0:01:48.1]} 18. h4 {[%clk
0:02:01.2]} 18... a4 {[%clk 0:01:43.1]} 19. a3 {[%clk 0:01:55.7]} 19... b5
{[%clk 0:01:14.5]} 20. g5 {[%clk 0:01:55.3]} 20... Qd4 {[%clk 0:00:59.5]} 21.
Bxb5 {[%clk 0:01:53.4]} 21... Qb6 {[%clk 0:00:43.7]} 22. Rxd8+ {[%clk
0:01:50.9]} 22... Qxd8 {[%clk 0:00:41]} 23. Bc4 {[%clk 0:01:48.9]} 23... Bf5
{[%clk 0:00:31.5]} 24. h5 {[%clk 0:01:44.6]} 24... Rb8 {[%clk 0:00:29.8]} 25.
hxg6 {[%clk 0:01:41.8]} 25... Bxg6 {[%clk 0:00:29.5]} 26. Re1 {[%clk 0:01:07.6]}
26... Qb6 {[%clk 0:00:26.3]} 27. Qe3 {[%clk 0:00:38.4]} 27... Bd4 {[%clk
0:00:22]} 28. Qxe7 {[%clk 0:00:20.9]} 28... Bxb2 {[%clk 0:00:21.7]} 29. Qb4
{[%clk 0:00:16.7]} 29... Bc3 {[%clk 0:00:21.7]} 30. Qxb6 {[%clk 0:00:15.6]}
30... Rxb6+ {[%clk 0:00:22.4]} 31. Ka2 {[%clk 0:00:07.9]} 31... Bxe1 {[%clk
0:00:22.4]} 32. Be3 {[%clk 0:00:07.3]} 32... Rc6 {[%clk 0:00:18.1]} 33. Bb5
{[%clk 0:00:04.7]} 33... Rxc2+ {[%clk 0:00:17.9]} 34. Ka1 {[%clk 0:00:04.5]}
34... Bc3+ {[%clk 0:00:17.5]} 35. Kb1 {[%clk 0:00:03.7]} 35... Rb2+ {[%clk
0:00:17.7]} 36. Kc1 {[%clk 0:00:03.4]} 36... Rb1# {[%clk 0:00:17.8]} 0-1

[Event "Late-Titled-Tuesday-Blitz-December-26-2023"]
[Site "Chess.com"]
[Date "2023.12.26"]
[Round "3"]
[White "Nathan_Filgueiras"]
[Black "McCarthyStone"]
[Result "1-0"]
[WhiteElo "2585"]
[BlackElo "2408"]
[TimeControl "180+1"]
[EndTime "14:28:19 PST"]
[Termination "Nathan_Filgueiras won on time"]

1. e4 {[%clk 0:03:00.9]} 1... d5 {[%clk 0:03:00.2]} 2. exd5 {[%clk 0:03:00.9]}
2... Qxd5 {[%clk 0:03:01.1]} 3. Nc3 {[%clk 0:03:01.4]} 3... Qa5 {[%clk
0:03:00.8]} 4. Bc4 {[%clk 0:03:02.1]} 4... Nf6 {[%clk 0:02:57]} 5. d4 {[%clk
0:03:01.9]} 5... a6 {[%clk 0:02:49.8]} 6. Ne2 {[%clk 0:02:57.3]} 6... b5 {[%clk
0:02:49.8]} 7. Bb3 {[%clk 0:02:57.1]} 7... Bb7 {[%clk 0:02:49.5]} 8. O-O {[%clk
0:02:57.3]} 8... e6 {[%clk 0:02:49.7]} 9. d5 {[%clk 0:02:39.6]} 9... e5 {[%clk
0:02:46]} 10. f4 {[%clk 0:02:30.2]} 10... Bc5+ {[%clk 0:02:34.3]} 11. Kh1 {[%clk
0:02:30.6]} 11... Ng4 {[%clk 0:02:31.3]} 12. Ne4 {[%clk 0:02:26.7]} 12... Be3
{[%clk 0:02:10.3]} 13. fxe5 {[%clk 0:02:19.7]} 13... Nd7 {[%clk 0:01:40.6]} 14.
e6 {[%clk 0:02:15]} 14... fxe6 {[%clk 0:01:33.8]} 15. dxe6 {[%clk 0:02:09.4]}
15... Nde5 {[%clk 0:01:34.1]} 16. Bxe3 {[%clk 0:01:32.8]} 16... Bxe4 {[%clk
0:01:14.1]} 17. Bg1 {[%clk 0:01:13.9]} 17... Qb4 {[%clk 0:00:16.8]} 18. Qd4
{[%clk 0:01:00.4]} 18... Qxd4 {[%clk 0:00:17]} 19. Nxd4 {[%clk 0:01:01.3]} 19...
c5 {[%clk 0:00:17.5]} 20. Rae1 {[%clk 0:00:56.2]} 20... Bb7 {[%clk 0:00:05.3]}
21. Nf5 {[%clk 0:00:41.4]} 21... O-O-O {[%clk 0:00:02.7]} 22. h3 {[%clk
0:00:37.6]} 22... Rd2 {[%clk 0:00:02.9]} 23. Nh4 {[%clk 0:00:28.8]} 23... g5
{[%clk 0:00:03.2]} 24. hxg4 {[%clk 0:00:20]} 24... gxh4 {[%clk 0:00:03.6]} 25.
Rf2 {[%clk 0:00:20.3]} 25... Rxf2 {[%clk 0:00:01.6]} 26. Bxf2 {[%clk 0:00:21.2]}
26... Nxg4 {[%clk 0:00:02.4]} 27. Bxh4 {[%clk 0:00:21.5]} 27... c4 {[%clk
0:00:02.6]} 28. e7 {[%clk 0:00:21.5]} 28... Re8 {[%clk 0:00:02.6]} 29. Rd1
{[%clk 0:00:16.7]} 29... Kc7 {[%clk 0:00:01]} 30. Rd8 {[%clk 0:00:15.7]} 30...
Bc6 {[%clk 0:00:01.6]} 31. Rd4 {[%clk 0:00:10.4]} 31... Ne5 {[%clk 0:00:01.1]}
32. Bg3 {[%clk 0:00:09.7]} 1-0